Cogmind - Beta 13 @@@ ROGUE MODE // 2024.04.19 @ 14:48:25 Player: Gabe+Kate4EVR Result: Destroyed by Y-54 Guardian with Gatling Laser Performance ------------- Evolutions (4) 2000 Regions Visited (5) 1000 Robots Destroyed (95) 475 Value Destroyed (2602) 2602 Prototype IDs (6) 120 Alien Tech Used (0) 0 Bonus (205) 205 TOTAL SCORE: 6402 Bonus ------- High Alert Combat Kills 125 Follower Combat Kills 80 Cogmind --------- Core Integrity 0/850 Matter 44/300 Energy 33/100 System Corruption 14% Temperature Cool (12) Movement Core (50) Location -6/Factory Parts ------- > --- POWER (1) -------- (None) > --- PROPULSION (4) --- (None) > --- UTILITY (6) ------ (None) > --- WEAPON (4) ------- (None) > --- INVENTORY (5) ---- Medium Storage Unit Improved Datajack Peak State ------------ > --- POWER ------------ Light Nuclear Core > --- PROPULSION ------- Armored Leg Armored Leg Armored Leg Armored Leg > --- UTILITY ---------- Medium Storage Unit Improved Trap Scanner Core Analyzer Recoil Stabilizer Hardened Heavy Armor Plating > --- WEAPON ----------- Improved Heavy Machine Gun Improved Heavy Machine Gun Heavy Assault Cannon > --- INVENTORY -------- Advanced Treads Matter Compressor Improved Light Armor Plating Particle Gun Spread Laser Phase Cannon Flak Gun Grenade Launcher Improved Datajack [Rating: 64] Favorites ----------- Power Improved Deuterium Engine Engine Improved Deuterium Engine Power Core Light Nuclear Core Propulsion Armored Leg Treads Advanced Treads Leg Armored Leg Wheel Wheel Utility Improved Targeting Computer Device Recoil Stabilizer Storage Small Storage Unit Processor Improved Targeting Computer Hackware System Shield Protection Heavy Armor Plating Weapon Improved Assault Rifle Energy Gun Small Laser Energy Cannon Phase Cannon Ballistic Gun Improved Assault Rifle Ballistic Cannon Heavy Assault Cannon Launcher Grenade Launcher Build | -11 -10 -9 -8 -7 -6 ------- Run | Yrd Mat Mat Mat Fac Fac Slots Evolved 8 | . . 2 2 2 2 Power . | . . . . . . Propulsion 2 | . . 2 . . . Utility 4 | . . . 2 2 . Weapon 2 | . . . . . 2 Parts Attached 99 | 6 8 31 19 6 29 Power 14 | 1 . 2 6 2 3 Engine 12 | 1 . 2 5 2 2 Core 2 | . . . 1 . 1 Reactor . | . . . . . . Propulsion 34 | 2 2 18 5 1 6 Treads 6 | . . . 4 1 1 Leg 19 | 2 . 11 1 . 5 Wheel 9 | . 2 7 . . . Hover . | . . . . . . Flight . | . . . . . . Utility 21 | 1 3 4 5 2 6 Device 3 | . . . . 1 2 Storage 2 | 1 . . 1 . . Processor 6 | . 1 2 1 . 2 Hackware 2 | . . 1 . . 1 Protection 8 | . 2 1 3 1 1 Artifact . | . . . . . . Weapon 30 | 2 3 7 3 1 14 Energy Gun 10 | 2 2 2 1 . 3 Energy Cannon 1 | . . . . . 1 Ballistic Gun 15 | . 1 5 1 . 8 Ballistic Cannon 1 | . . . . 1 . Launcher 3 | . . . 1 . 2 Special Weapon . | . . . . . . Impact Weapon . | . . . . . . Slashing Weapon . | . . . . . . Piercing Weapon . | . . . . . . Special Melee Weapon . | . . . . . . Unidentified Prototypes 4 | . . 3 . . 1 Parts Lost 26 | . . 2 5 . 19 Power 4 | . . . 2 . 2 Propulsion 6 | . . . 2 . 4 Utility 7 | . . 1 1 . 5 Weapon 9 | . . 1 . . 8 Highest Loss Streak 19 | . . 1 2 . 19 To Critical Strikes . | . . . . . . Average Slot Usage (%) 87 | . 91 96 91 76 78 Engine 8 | . 14 11 8 7 5 Treads 7 | . . . 20 30 2 Leg 19 | . 17 25 13 . 22 Wheel 5 | . 10 17 . . . Storage 8 | . 14 11 9 7 5 Processor 7 | . 1 2 12 7 7 Protection 8 | . 4 5 8 12 10 Energy Gun 3 | . 26 4 . . . Ballistic Gun 13 | . 1 17 17 5 12 Ballistic Cannon 2 | . . . . 4 5 Naked Turns 5 | . . . . . 5 Heaviest Build 74 | 12 17 19 36 62 74 Greatest Support 88 | 20 20 52 88 88 86 Greatest Overweight (x) 7 | . . 1 1 . 7 Average Overweight (x) . | . . . . . . Largest Inventory Capacity 10 | 8 8 8 10 10 10 Average Capacity 8 | 6 8 8 8 10 9 Most Carried 10 | 3 8 8 10 10 10 Average Carried 8 | 1 6 7 7 9 9 Final Capacity 10 | 8 8 8 10 10 5 Final Carried 10 | 3 8 8 10 10 2 Class Distribution -------------------- 55% | Mutant 22% | Scavenger-Tank 11% | Scavenger-Gunner 10% | Scavenger-Mutant Dominant Class ---------------- Mutant | -10/Materials Mutant | -9/Materials Mutant | -8/Materials Scavenger-Mutant | -7/Factory Scavenger-Tank | -6/Factory Resources | -11 -10 -9 -8 -7 -6 ----------- Run | Yrd Mat Mat Mat Fac Fac Matter Collected 2866 | 233 107 830 502 176 1018 Remotely . | . . . . . . Salvage Created 3444 | . 293 1355 640 42 1114 Parts 206 | . 22 91 43 4 46 Haulers Intercepted 10 | . 1 5 1 . 3 Recyclers Shooed 4 | . 2 1 1 . . Parts Field Recycled . | . . . . . . Retrieved Matter . | . . . . . . Parts Self-Destructed . | . . . . . . Prevented . | . . . . . . Kills | -11 -10 -9 -8 -7 -6 ------- Run | Yrd Mat Mat Mat Fac Fac Combat Hostiles Destroyed 59 | . 5 21 13 . 20 Guns 47 | . 5 21 13 . 8 Cannons 10 | . . . . . 10 AOE 2 | . . . . . 2 Classes Destroyed 15 | . 6 6 . . 3 Worker 10 | . 1 5 1 1 2 Builder 5 | . . 1 1 1 2 Tunneler 2 | . . 2 . . . Hauler 10 | . 1 5 1 . 3 Recycler 3 | . 1 . . . 2 Operator 1 | . . 1 . . . Watcher 5 | . 2 2 1 . . Swarmer 12 | . 3 . 4 . 5 Grunt 28 | . 2 17 4 . 5 Brawler 1 | . . 1 . . . Duelist 1 | . . 1 . . . Sentry 9 | . . 2 5 . 2 Specialist 2 | . . . . . 2 Hunter 1 | . . . . . 1 Programmer 5 | . . . . . 5 Best Kill Streak 9 | . 4 9 6 1 9 Combat Bots Only 6 | . 3 6 5 . 5 Max Kills in Single Turn 2 | . 1 1 1 1 2 Gunslinging . | . . . . . . Exploded 1 | . . . . . 1 Melee . | . . . . . . Uniques/NPCs Destroyed . | . . . . . . Combat | -11 -10 -9 -8 -7 -6 -------- Run | Yrd Mat Mat Mat Fac Fac Hostile Shots Fired 631 | . 12 84 97 13 425 Missed 164 | . 2 19 23 6 114 Damage Taken 6501 | . 102 795 1019 346 4239 Core 1148 | . 35 166 96 . 851 Absorbed by Shields . | . . . . . . Redirected to Shielding 104 | . . 52 52 . . Regen/Repaired (Parts) 18 | . . 18 . . . Core Remaining (%) 85 | 100 86 58 82 100 . Volleys Fired 259 | . 27 98 65 9 60 Largest 3 | . 2 2 2 2 3 Hottest 150 | . 130 88 46 60 150 Shots Fired 540 | . 44 188 130 16 162 Gun 485 | . 44 188 130 14 109 Cannon 50 | . . . . 2 48 Launcher 5 | . . . . . 5 Special . | . . . . . . Kinetic 463 | . . 175 130 16 142 Thermal 72 | . 44 13 . . 15 Explosive 5 | . . . . . 5 Electromagnetic . | . . . . . . Robot Hit Streak 28 | . 13 13 28 10 15 Robot Miss Streak 11 | . 11 5 2 3 8 Penetration Max 1 | . . . . . 1 Secondary Targets 6 | . . 2 3 . 1 Max Gunslinging Chain 1 | . . 1 1 . 1 Shots Hit Robots 380 | . 37 135 103 13 92 Core Hits 230 | . 27 54 35 4 110 Critical Kills 3 | . . 1 1 . 1 Critical Parts Destroyed 1 | . . . 1 . . Critical Strikes 11 | . . 1 2 . 8 Burn 1 | . . . . . 1 Destroy 4 | . . 1 2 . 1 Blast 6 | . . . . . 6 Melee Attacks . | . . . . . . Impact . | . . . . . . Slashing . | . . . . . . Piercing . | . . . . . . Sneak Attacks . | . . . . . . Combat Hostiles . | . . . . . . Follow-up Attacks . | . . . . . . Damage Inflicted 8116 | . 364 2066 1562 228 3896 Guns 5446 | . 364 2066 1562 180 1274 Cannons 1620 | . . . . 48 1572 Explosions 1037 | . . . . . 1037 Melee . | . . . . . . Ramming 13 | . . . . . 13 Kinetic 6293 | . . 1949 1562 228 2554 Thermal 773 | . 364 117 . . 292 Explosive 1037 | . . . . . 1037 Electromagnetic . | . . . . . . Impact . | . . . . . . Slashing . | . . . . . . Piercing . | . . . . . . Highest Corruption 14 | . . . . . 14 Average Corruption 6 | . . . . . 6 Corruption Purged . | . . . . . . Corruption Blocked . | . . . . . . Effects 27 | . . . . . 27 Message Errors 5 | . . . . . 5 Matter Fused 5 | . . . . . 5 Heat Flow Errors 5 | . . . . . 5 Energy Discharges 8 | . . . . . 8 Parts Fused 1 | . . . . . 1 Data Loss (minor) 2 | . . . . . 2 Weapon Failures 1 | . . . . . 1 Overload Shots . | . . . . . . Overflow Damage 75 | . . . . . 75 Projectiles 75 | . . . . . 75 Explosions . | . . . . . . Melee . | . . . . . . Knockbacks 9 | . . . . . 9 Impact . | . . . . . . Kinetic 8 | . . . . . 8 Secondary 1 | . . . . . 1 Self-Inflicted Damage 11 | . . . . . 11 Shots 1 | . . . . . 1 Rammed 2 | . . . . . 2 Targets Rammed 3 | . . . . . 3 Kicked 1 | . . . . . 1 Crushed . | . . . . . . Highest Temperature 439 | . 439 54 18 36 415 Average Temperature 119 | . 111 21 7 21 133 Received Heat Transfer 1542 | . 30 363 378 9 762 Effects 8 | . 2 . . . 6 Shutdowns 2 | . 1 . . . 1 Energy Bleed 1 | . . . . . 1 Interference 1 | . 1 . . . . Short Circuit 3 | . . . . . 3 Damage (minor) 1 | . . . . . 1 Siege Activations . | . . . . . . Robots Corrupted . | . . . . . . Combat Hostiles . | . . . . . . Parts Fried . | . . . . . . Impact Corruptions 1 | . . . . . 1 Robots Melted . | . . . . . . Combat Hostiles . | . . . . . . Parts Melted 1 | . . . . . 1 Heat Transferred 1334 | . 630 230 . . 474 Parts Sabotaged 4 | . . . . . 4 Parts Stolen . | . . . . . . Parts Stripped . | . . . . . . Power Chain Reactions . | . . . . . . Alert | -11 -10 -9 -8 -7 -6 ------- Run | Yrd Mat Mat Mat Fac Fac Peak Influence 557 | . 226 557 528 114 317 Initial 186 | . . 94 186 102 55 Average 219 | . 144 352 334 109 103 Maximum Alert Level 2 | . 1 2 2 . 1 Low Security (%) 50 | 100 70 24 2 100 82 Level 1 33 | . 29 26 78 . 17 Level 2 15 | . . 48 18 . . Level 3 . | . . . . . . Level 4 . | . . . . . . Level 5 . | . . . . . . High Security . | . . . . . . Max Security . | . . . . . . Squads Dispatched 23 | . 1 5 4 3 10 Investigation 3 | . . 1 2 . . Extermination 3 | . . . . 1 2 Reinforcement 14 | . 1 4 2 2 5 Assault . | . . . . . . Garrison 3 | . . . . . 3 Intercept . | . . . . . . Searches Triggered . | . . . . . . Construction Impeded 2 | . . . . . 2 Haulers Reinforced 2 | . . . . . 2 Active Scanning Responses . | . . . . . . Cargo Convoy Interrupts 1 | . . . . . 1 Stealth | -11 -10 -9 -8 -7 -6 --------- Run | Yrd Mat Mat Mat Fac Fac Distress Signals 8 | . 1 . 6 . 1 Communications Jammed . | . . . . . . Distress Signals . | . . . . . . Times Spotted 109 | . 11 29 18 5 46 Peak Tracking Total 15 | . 3 5 5 4 15 Tactical Retreats 4 | . . 1 . . 3 Traps | -11 -10 -9 -8 -7 -6 ------- Run | Yrd Mat Mat Mat Fac Fac Traps Triggered 4 | . . 1 1 . 2 Indirectly . | . . . . . . Trap Hack Attempts . | . . . . . . Triggered . | . . . . . . Disarmed . | . . . . . . Reprogrammed . | . . . . . . Reused . | . . . . . . Traps Extracted . | . . . . . . Installed . | . . . . . . Triggered . | . . . . . . Machines | -11 -10 -9 -8 -7 -6 ---------- Run | Yrd Mat Mat Mat Fac Fac Machines Disabled 4 | . . 1 1 . 2 Max in Single Turn 1 | . . 1 1 . 1 Machines Repaired . | . . . . . . Machines Dismantled . | . . . . . . Machines Sabotaged . | . . . . . . Overloaded Fab Kills . | . . . . . . Hacking | -11 -10 -9 -8 -7 -6 --------- Run | Yrd Mat Mat Mat Fac Fac Machines Accessed 12 | . 2 4 6 . . Terminals 8 | . . 3 5 . . Fabricators . | . . . . . . Repair Stations 1 | . . 1 . . . Recycling Units 2 | . 2 . . . . Scanalyzers 1 | . . . 1 . . Garrison Access . | . . . . . . Total Hacks 28 | . 3 9 16 . . Successful 11 | . 2 3 6 . . Failed 17 | . 1 6 10 . . Catastrophic 3 | . . 2 1 . . Database Lockouts . | . . . . . . Manual 12 | . . 5 7 . . Terminals 17 | . . 7 10 . . Fabricators . | . . . . . . Repair Stations 2 | . . 2 . . . Recycling Units 3 | . 3 . . . . Scanalyzers 6 | . . . 6 . . Garrison Access . | . . . . . . Terminal Hacks 2 | . . 1 1 . . Prototype ID Bank 1 | . . . 1 . . Level Access Points 1 | . . 1 . . . Fabricator Hacks . | . . . . . . Repair Station Hacks 2 | . . 2 . . . Scan Component 1 | . . 1 . . . Repair 1 | . . 1 . . . Recycling Unit Hacks 2 | . 2 . . . . Retrieve Components 2 | . 2 . . . . Scanalyzer 5 | . . . 5 . . Insert Component 2 | . . . 2 . . Analyze 3 | . . . 3 . . Garrison Access Hacks . | . . . . . . Unauthorized Hacks . | . . . . . . Terminals . | . . . . . . Fabricators . | . . . . . . Repair Stations . | . . . . . . Recycling Units . | . . . . . . Scanalyzers . | . . . . . . Garrison Access . | . . . . . . Data Cores Recovered . | . . . . . . Used . | . . . . . . Hacking Detections 10 | . 2 4 4 . . Full Trace Events 3 | . . 2 1 . . Feedback Events . | . . . . . . Feedback Blocked . | . . . . . . Robot Schematics Acquired . | . . . . . . Robots Built . | . . . . . . Authchips . | . . . . . . Time . | . . . . . . Total Robot Build Rating . | . . . . . . Part Schematics Acquired 2 | . . . 2 . . Parts Built . | . . . . . . Authchips . | . . . . . . Time . | . . . . . . Total Part Build Rating . | . . . . . . Parts Repaired 1 | . . 1 . . . Time 26 | . . 26 . . . Parts Recycled . | . . . . . . Recycled Matter . | . . . . . . Retrieved Matter . | . . . . . . Retrieved Components 7 | . 7 . . . . Parts Scanalyzed 2 | . . . 2 . . Part Schematics Acquired 2 | . . . 2 . . Parts Damaged . | . . . . . . Bothacking | -11 -10 -9 -8 -7 -6 ------------ Run | Yrd Mat Mat Mat Fac Fac Used RIF Installer . | . . . . . . Robots Hacked . | . . . . . . Non-combat . | . . . . . . Combat . | . . . . . . Robot Hacks Applied . | . . . . . . Relay Couplers Released 4 | . . . . . 4 Programmers 4 | . . . . . 4 Fabnet Peak Effective % . | . . . . . . Robots Rewired . | . . . . . . Allies Hacked . | . . . . . . Hacks Repelled . | . . . . . . Allies | -11 -10 -9 -8 -7 -6 -------- Run | Yrd Mat Mat Mat Fac Fac Total Allies 3 | . . . . . 3 Largest Group 3 | . . . . . 3 Highest-Rated Group 93 | . . . . . 93 Highest-Rated Ally 31 | . . . . . 31 Total Orders . | . . . . . . Ally Attacks 15 | . . . . . 15 Total Damage 123 | . . . . . 123 Kills 4 | . . . . . 4 Allies Corrupted . | . . . . . . Allies Melted . | . . . . . . Intel | -11 -10 -9 -8 -7 -6 ------- Run | Yrd Mat Mat Mat Fac Fac Robot Analysis Total . | . . . . . . Derelict Logs Recovered . | . . . . . . Drone Launches . | . . . . . . Drone Recoveries . | . . . . . . Exploration | -11 -10 -9 -8 -7 -6 ------------- Run | Yrd Mat Mat Mat Fac Fac Turns Passed 4027 | 68 341 939 967 255 1457 Spaces Moved 2215 | 51 249 532 523 135 725 Core 13 | 6 . . . . 7 Treads 549 | . . . 357 135 57 Legs 1297 | 45 118 307 166 . 661 Wheels 356 | . 131 225 . . . Hover . | . . . . . . Flight . | . . . . . . Fastest Speed 50 | 50 80 80 120 145 50 Average Speed 132 | 111 98 103 137 149 159 Slowest Speed 400 | 120 120 190 225 151 400 Overloaded Moves . | . . . . . . Propulsion Burnouts . | . . . . . . Robots Hopped . | . . . . . . Cave-ins Triggered . | . . . . . . Exploration Rate (%) 21 | 4 26 35 44 3 17 Regions Visited 5 Branch Regions . Pre-discovered Areas . | . . . . . . Known Exits Taken 2 | . 1 1 . . . Unknown Exits Taken 3 | 1 . . 1 1 . Scrap Searched . | . . . . . . Spaces Dug . | . . . . . . Terrain Destroyed 47 | . . . . 2 45 Melee . | . . . . . . Projectile 26 | . . . . 2 24 AOE 21 | . . . . . 21 Terrain Rammed . | . . . . . . Walls Destroyed . | . . . . . . Machines Disabled . | . . . . . . Actions | -11 -10 -9 -8 -7 -6 --------- Run | Yrd Mat Mat Mat Fac Fac Total 2799 | 59 300 741 643 173 883 Wait 121 | . 3 44 16 15 43 Move 2210 | 50 248 531 522 134 725 Hop . | . . . . . . Pick Up 31 | 3 8 7 6 2 5 Fast Attach 57 | 6 2 17 11 5 16 Attach 20 | . 2 2 5 . 11 Detach 14 | . 1 3 6 . 4 Swap 22 | . 4 12 3 1 2 Drop 62 | . 5 27 9 7 14 Fire 259 | . 27 98 65 9 60 Melee . | . . . . . . Ram 1 | . . . . . 1 Kick 1 | . . . . . 1 Crush 1 | . . . . . 1 Escape Stasis . | . . . . . . Rewire . | . . . . . . Trap . | . . . . . . Miscellaneous . | . . . . . . Route ------- -11/Scrapyard -10/Materials (discovered 2 exits: *Mat / [*Min]) -9/Materials (discovered 4 exits: *Mat x3 / [*Min]) -8/Materials -7/Factory -6/Factory History --------- Turn | Location | Event 14 | -11/Scrapyard | Discovered new exit (range 16) 69 | -11/Scrapyard | Entered Materials 84 | -10/Materials | Discovered new exit (range 15) 263 | -10/Materials | Discovered new exit (range 8) 314 | -10/Materials | Build established: Mutant 327 | -10/Materials | Identified exit to Materials 410 | -10/Materials | Entered another Materials area 410 | -9/Materials | Evolved 2 slots: Propulsion x2 503 | -9/Materials | Repaired Wheel 1058 | -9/Materials | Identified exit to Materials 1081 | -9/Materials | Discovered new exit (range 16) 1349 | -9/Materials | Entered another Materials area 1349 | -8/Materials | Evolved 2 slots: Utility x2 1697 | -8/Materials | Met 7R-MNS 1920 | -8/Materials | Discovered new exit (range 15) 2316 | -8/Materials | Entered Factory 2316 | -7/Factory | Evolved 2 slots: Utility x2 2317 | -7/Factory | Caught up to 7R-MNS 2354 | -7/Factory | Discovered new exit (range 6) 2571 | -7/Factory | Entered another Factory area 2571 | -6/Factory | Evolved 2 slots: Weapon x2 2572 | -6/Factory | Caught up to 7R-MNS 2615 | -6/Factory | Allied Derelicts emerged from ambush trap array 2859 | -6/Factory | Build established: Scavenger-Tank 3695 | -6/Factory | System corruption reached 10% 3768 | -6/Factory | Build established: Scavenger-Gunner 3935 | -6/Factory | Cargo convoy interrupted 3994 | -6/Factory | Core integrity fell below 50% 4022 | -6/Factory | Core integrity fell below 20% 4028 | -6/Factory | Destroyed by Y-54 Guardian with Gatling Laser Last Messages --------------- 04012_ Penetrated by Slug. 04012_ Spread Laser destroyed. 04013_ Slammed into K-01 Serf. 04014_ K-01 Serf collects debris. 04015_ Penetrated by Slug. 04016_ Imp. Light Armor Plating destroyed. 04016_ K-01 Serf destroyed. 04018_ R3OXIANVLCP14/CPW0CTDUQQ /RV6W,JWS|YL8C 04019_ Acquired Imp. Carbon-fiber Leg. 04022_ U-05 Engineer builds a Wall. 04024_ Penetrated by Slug. 04024_ Imp. Carbon-fiber Leg destroyed. 04024_ U-05 Engineer builds a Door. 04025_ U-05 Engineer builds a Wall. 04025_ Acquired Imp. Heavy Machine Gun. 04025_ Imp. Heavy Machine Gun destroyed. 04025_ U-05 Engineer lays Concrete. 04027_ Acquired Shock Rifle. 04027_ Shock Rifle destroyed. 04028_ U-05 Engineer builds a Wall. Map ----- +----------------------------------------------------+ | ?????????????????????????????????????????????????? | | ?????????????????????????????????????????????????? | | ?????????????????????????????????????????????????? | | ?????????????????????????????????????????????????? | | ?????????????????????????????????????????????????? | | ?????????????????????????????????????????????????? | | ?????????????????????????????????????????????????? | | ?????????????????????????????????????????????????? | | ?????????????????????????????????????????????????? | | ?????????????????????????????????????????????????? | | ?????????????????????????????????????????????????? | | ????????????????????????########?????????????????? | | ????????????????????????# ?#??????????????? | | ??????????????????????### #??????????????? | | ??????????????????????? " #??????????????? | | ????????????????????????# """" #??????????????? | | ????????????????????????# """" #??????????????? | | ????????????????????????# """" #??????????????? | | ????????????????????????# "%"" #??????????????? | | ##########+###??????????# !=%!= #?? #??????????? | | #??????????#####!p#### #??????????? | | ############ h %= #??????????? | | """""" Y #??????????? | | // """""" ! #??????????? | | / """""" =###########??????????? | | / """""" ##############@= ] ] [ #????????? | | #?????????# #*%%#[ #????????? | | #?????????## #%==#="""" """" ?????????? | | ########## #??????????###=|uu!"""" "?????????????? | | ?????????# #??????????? #/ x#] """ "?????????????? | | ?????????# #??????????" # # """ ??????????????? | | #######??# #????????? # # ???????????????? | | #??# #????????? [#== #######??????????????? | | #??? #???????? !+!* ##???????????????????? | | #??? #????????"""=#![[#????????????????????? | | #??? ?????????"""[#!![#????????????????????? | | #??? #??????????"!#i![#????????????????????? | | #??? ???????????[[#[![#????????????????????? | | #+######## #??????????###!%%+????????????????????? | | # #?????????????[[ #????????????????????? | | # #????????????? ?????????????????????? | | # "#?????????????????????????????????????? | | """ "#?????????????????????????????????????? | | """ "#?????????????????????????????????????? | | """ T#?????????????????????????????????????? | | ^ "#???##########????????????????????????? | | """ "#???# #????????????????????????? | | """ "#???# """ #????????????????????????? | | """ %#???# """ # ?????????????????????? | | ##### """ # #????????????????????? | +----------------------------------------------------+ Best States ------------- Heat Dissipation 37 Energy Generation 18 Energy Capacity 290 Matter Stores 300 Matter Capacity 300 Sight Range 16 Terrain Scan Density 10 Armor Coverage 1200 Propulsion Shielding 33 Evasion (%) 55 Targeting Accuracy 12 Core Analysis 6 Recoil Reduction 4 Offensive Hacking 10 Defensive Hacking 10 Item Schematics ----------------- Imp. Assault Rifle | -8/Materials | Scanalyzed Adv. Treads | -8/Materials | Scanalyzed Robot Schematics ------------------ None Fabricated ------------ Nothing Alien Tech Used ----------------- None Achievements -------------- None Challenges ------------ None Game ------ Seed FocalWardroneInterpreter Manual? 0 Play Time 00:26:26 Cumulative 104.6 hours Start 2024.04.19 @ 14:22:07 End 2024.04.19 @ 14:48:25 Sessions 1 Manual Loads 0 Difficulty Rogue Special Mode None Game No. 215 Rogue 215 Adventurer 0 Explorer 0 Win Type - Total 0 Types 0/0/0/0/0/0/0/0/0 Lore% 32 Gallery% 50 Achievement% 35 Wizard Run 0 Options --------- Layout 0 ASCII 0 Keyboard 1 Movement Numpad Keybinds 0 Fullscreen 2 Font 18/X11 Map View 76x50 Zoom Use 0% Tactical HUD 1 Map Filters NONE Filters NONE Steam 1 RUN: adf769b8-7cd8-4949-b61a-e59166404e36